bitfinex/quotes_BTCUSD_20251011
["timestamp","ask_amount","ask_price","bid_price","bid_amount"]
[1760200131569,7.23544817,112140.0,112130.0,0.00318978]
[1760200133491,7.32416751,112140.0,112130.0,0.00318978]
[1760200134104,7.23544817,112140.0,112130.0,0.00318978]
[1760200138077,2.23544817,112140.0,112130.0,0.00318978]
[1760200138283,7.23544817,112140.0,112130.0,0.00318978]
[1760200139309,2.23544817,112140.0,112130.0,0.00318978]
[1760200139494,7.23544817,112140.0,112130.0,0.00318978]
[1760200139896,2.23544817,112140.0,112130.0,0.00318978]
[1760200140148,7.23544817,112140.0,112130.0,0.00318978]
[1760200140986,2.23544817,112140.0,112130.0,0.00318978]
[1760200141163,7.23544817,112140.0,112130.0,0.00318978]
[1760200141814,2.21680817,112140.0,112130.0,0.00318978]
[1760200142055,7.23544817,112140.0,112130.0,0.00318978]
[1760200142798,7.31705481,112140.0,112130.0,0.00318978]
[1760200143554,7.23544817,112140.0,112130.0,0.00318978]
[1760200145142,7.26134631,112140.0,112130.0,0.00318978]
[1760200145343,7.26147876,112140.0,112130.0,0.00318978]
[1760200147244,7.26147876,112140.0,112130.0,0.00218978]
[1760200148074,8.9453139,112140.0,112130.0,0.00218978]
[1760200148279,7.37701615,112140.0,112130.0,0.00218978]
[1760200148474,7.37801615,112140.0,112130.0,0.00218978]
[1760200148675,2.37801615,112140.0,112130.0,0.00218978]
[1760200148886,9.03969684,112140.0,112130.0,0.00218978]
[1760200149819,7.38267975,112140.0,112130.0,0.00218978]
[1760200150411,8.71832102,112140.0,112130.0,0.00218978]
[1760200151025,7.06130393,112140.0,112130.0,0.00218978]
[1760200151239,8.71832102,112140.0,112130.0,0.00218978]
[1760200151924,8.71845347,112140.0,112130.0,0.00218978]
[1760200152504,9.05845347,112140.0,112130.0,0.00218978]
[1760200152709,4.05845347,112140.0,112130.0,0.00218978]
[1760200152912,9.05845347,112140.0,112130.0,0.00218978]
[1760200153972,4.05845347,112140.0,112130.0,0.00218978]
[1760200154197,9.05845347,112140.0,112130.0,0.00218978]
[1760200155202,4.05845347,112140.0,112130.0,0.00218978]
[1760200155410,9.05845347,112140.0,112130.0,0.00218978]
[1760200156135,9.03163542,112140.0,112130.0,0.00218978]
[1760200157320,4.03163542,112140.0,112130.0,0.00218978]
[1760200157591,9.03163542,112140.0,112130.0,0.00218978]
[1760200157861,4.03163542,112140.0,112130.0,0.00218978]
[1760200158062,9.03163542,112140.0,112130.0,0.00218978]
[1760200158359,4.03163542,112140.0,112130.0,0.00218978]
[1760200158740,9.03163542,112140.0,112130.0,0.00218978]
[1760200158985,9.06178732,112140.0,112130.0,0.00218978]
[1760200160454,5.51836439,112130.0,112120.0,1e-08]
[1760200160590,7.29006046,112130.0,112120.0,1e-08]
[1760200160956,5.66682337,112130.0,112120.0,1e-08]
[1760200161284,5.80169021,112130.0,112120.0,1e-08]
[1760200162531,5.81835887,112130.0,112120.0,1e-08]
[1760200162729,5.83755997,112130.0,112120.0,1e-08]
[1760200163238,5.83855997,112130.0,112120.0,1e-08]
[1760200163463,5.83955997,112130.0,112120.0,1e-08]
[1760200163642,0.83955997,112130.0,112120.0,1e-08]
[1760200163789,5.83955997,112130.0,112120.0,1e-08]
[1760200163992,5.86455996,112130.0,112120.0,1e-08]
[1760200164214,5.54854811,112110.0,112100.0,0.00035846]
[1760200164420,7.30410855,112110.0,112100.0,0.00035846]
[1760200164624,2.33788855,112110.0,112100.0,0.00035846]
[1760200164818,7.36473417,112110.0,112100.0,0.00035846]
[1760200165477,2.39069383,112110.0,112100.0,0.00035846]
[1760200165612,7.39069383,112110.0,112100.0,0.00035846]
[1760200167447,2.39069383,112110.0,112100.0,0.00035846]
[1760200167650,7.39069383,112110.0,112100.0,0.00035846]
[1760200167854,7.39069383,112110.0,112100.0,0.00209842]
[1760200168055,2.39069383,112110.0,112100.0,0.00209842]
[1760200168387,7.39069383,112110.0,112100.0,0.00209842]
[1760200168964,2.39069383,112110.0,112100.0,0.00209842]
[1760200169304,7.39069383,112110.0,112100.0,0.00209842]
[1760200169824,2.39069383,112110.0,112100.0,0.00209842]
[1760200170019,7.39069383,112110.0,112100.0,0.00209842]
[1760200170288,5.73367674,112110.0,112100.0,0.00209842]
[1760200170656,7.39069383,112110.0,112100.0,0.00209842]
[1760200171188,5.73367674,112110.0,112100.0,0.00209842]
[1760200171448,7.39069383,112110.0,112100.0,0.00209842]
[1760200172031,2.39069383,112110.0,112100.0,0.00209842]
[1760200172236,7.39069383,112110.0,112100.0,0.00209842]
[1760200172631,2.39069383,112110.0,112100.0,0.00209842]
[1760200172853,7.39069383,112110.0,112100.0,0.00209842]
[1760200173232,2.39069383,112110.0,112100.0,0.00209842]
[1760200173585,7.39069383,112110.0,112100.0,0.00209842]
[1760200173947,9.04771092,112110.0,112100.0,1e-08]
[1760200174152,9.15355918,112110.0,112100.0,1e-08]
[1760200174357,9.20633689,112110.0,112100.0,1e-08]
[1760200175494,9.21001507,112110.0,112100.0,1e-08]
[1760200176864,4.21001507,112110.0,112100.0,1e-08]
[1760200177064,9.21001507,112110.0,112100.0,1e-08]
[1760200177756,4.21001507,112110.0,112100.0,1e-08]
[1760200178105,9.21001507,112110.0,112100.0,1e-08]
[1760200178507,4.21001507,112110.0,112100.0,1e-08]
[1760200178711,9.21001507,112110.0,112100.0,1e-08]
[1760200179154,4.21001507,112110.0,112100.0,1e-08]
[1760200179393,9.21468031,112110.0,112100.0,1e-08]
[1760200180299,4.21468031,112110.0,112100.0,1e-08]
[1760200180499,9.21468031,112110.0,112100.0,1e-08]
[1760200181711,4.21468031,112110.0,112100.0,1e-08]
[1760200181862,9.21468031,112110.0,112100.0,1e-08]
[1760200182075,9.18452841,112110.0,112100.0,1e-08]
[1760200183833,4.18452841,112110.0,112100.0,1e-08]
[1760200184050,9.18452841,112110.0,112100.0,1e-08]
[1760200184282,9.18453594,112110.0,112100.0,1e-08]
[1760200184461,4.18453594,112110.0,112100.0,1e-08]
[1760200185034,9.18453594,112110.0,112100.0,1e-08]
[1760200185222,9.20372292,112110.0,112100.0,1e-08]
[1760200186657,4.20372292,112110.0,112100.0,1e-08]
[1760200187195,9.20372292,112110.0,112100.0,1e-08]
[1760200187700,4.20372292,112110.0,112100.0,1e-08]
[1760200187939,9.20372292,112110.0,112100.0,1e-08]
[1760200188512,4.20372292,112110.0,112100.0,1e-08]
[1760200188701,9.20372292,112110.0,112100.0,1e-08]
[1760200190763,5.88601056,112110.0,112100.0,1e-08]
[1760200190943,7.3769238,112110.0,112100.0,1e-08]
[1760200191343,2.3769238,112110.0,112100.0,1e-08]
[1760200191549,6.70077122,112110.0,112100.0,1e-08]
[1760200191962,1.70077122,112110.0,112100.0,1e-08]
[1760200192169,6.70077122,112110.0,112100.0,1e-08]
[1760200193424,1.69610598,112110.0,112100.0,1e-08]
[1760200193734,6.72206564,112110.0,112100.0,1e-08]
[1760200194442,6.72211227,112110.0,112100.0,1e-08]
[1760200194994,1.72211227,112110.0,112100.0,1e-08]
[1760200195241,6.72211227,112110.0,112100.0,1e-08]
[1760200196960,1.70287866,112110.0,112100.0,1e-08]
[1760200197150,6.70287866,112110.0,112100.0,1e-08]
[1760200198120,6.70287866,112110.0,112100.0,0.02754001]
[1760200198121,5.73820786,112110.0,112100.0,0.02754001]
[1760200198559,5.72155764,112110.0,112100.0,0.02754001]
[1760200198762,5.72155764,112110.0,112100.0,0.01200001]
[1760200198965,6.06155764,112110.0,112100.0,0.01200001]
[1760200199582,6.06155764,112110.0,112100.0,0.05104001]
[1760200200161,6.04641764,112110.0,112100.0,0.05104001]
[1760200200593,6.03709764,112110.0,112100.0,0.05104001]
[1760200201370,6.14108698,112110.0,112100.0,0.05104001]
[1760200201569,1.14108698,112110.0,112100.0,0.05104001]
[1760200201767,6.14108698,112110.0,112100.0,0.05104001]
[1760200202222,1.05236764,112110.0,112100.0,0.05104001]
[1760200202426,6.05236764,112110.0,112100.0,0.05104001]
[1760200202794,6.03709764,112110.0,112100.0,0.05104001]
[1760200203193,1.03709764,112110.0,112100.0,0.05104001]
[1760200203525,6.03709764,112110.0,112100.0,0.05104001]
[1760200205012,6.03709764,112110.0,112100.0,0.05204001]
[1760200205205,1.09946137,112110.0,112100.0,0.05204001]
[1760200205411,1.09946137,112110.0,112100.0,0.00100001]
[1760200205412,6.14061539,112110.0,112100.0,0.00100001]
[1760200205660,6.18607344,112110.0,112100.0,0.00200001]
[1760200206828,6.16743344,112110.0,112100.0,0.01754001]
[1760200207714,6.16843343,112110.0,112100.0,0.01754001]
[1760200207989,1.16843343,112110.0,112100.0,0.01754001]
[1760200208196,6.16843343,112110.0,112100.0,0.01754001]
[1760200208398,6.16843343,112110.0,112100.0,0.02954001]
[1760200208603,6.1060697,112110.0,112100.0,0.02954001]
[1760200208816,6.1060697,112110.0,112100.0,0.01400001]
[1760200209259,6.1247097,112110.0,112100.0,0.00200001]
[1760200209635,6.1060697,112110.0,112100.0,0.00200001]
[1760200209840,6.19478904,112110.0,112100.0,0.00200001]
[1760200210061,6.21342904,112110.0,112100.0,0.00200001]
[1760200210472,6.19478904,112110.0,112100.0,0.00200001]
[1760200211047,6.19478904,112110.0,112100.0,0.01754001]
[1760200211256,6.1060697,112110.0,112100.0,0.01754001]
[1760200211452,1.07925165,112110.0,112100.0,0.01754001]
[1760200211652,6.07925165,112110.0,112100.0,0.01754001]
[1760200211875,6.07925165,112110.0,112100.0,0.00200001]
[1760200212248,6.07925165,112110.0,112100.0,0.05394001]
[1760200212450,6.06398165,112110.0,112100.0,0.05394001]
[1760200212659,6.03802199,112110.0,112100.0,0.05394001]
[1760200213504,1.05346199,112110.0,112100.0,0.02907001]
[1760200213716,6.16814099,112110.0,112100.0,0.01718001]
[1760200213984,6.07942165,112110.0,112100.0,0.02907001]
[1760200214996,6.07942165,112110.0,112100.0,0.05394001]
[1760200215192,6.06398165,112110.0,112100.0,0.05394001]
[1760200216272,6.07942165,112110.0,112100.0,0.02907001]
[1760200216724,1.07942165,112110.0,112100.0,0.02907001]
[1760200216918,6.07942165,112110.0,112100.0,0.02907001]
[1760200217140,6.09260978,112110.0,112100.0,0.02907001]
[1760200217338,6.09260978,112110.0,112100.0,0.05394001]
[1760200217339,6.07942165,112110.0,112100.0,0.05394001]
[1760200217501,1.07942165,112110.0,112100.0,0.05394001]
[1760200217678,6.07942165,112110.0,112100.0,0.05394001]
[1760200218342,6.06398165,112110.0,112100.0,0.05394001]
[1760200218521,1.06398165,112110.0,112100.0,0.05394001]
[1760200218725,6.06398165,112110.0,112100.0,0.05394001]
[1760200219597,1.06398165,112110.0,112100.0,0.05394001]
[1760200220227,6.07942165,112110.0,112100.0,0.05394001]
[1760200220655,1.07942165,112110.0,112100.0,0.05394001]
[1760200220869,6.06398165,112110.0,112100.0,0.05394001]
[1760200223012,1.06398165,112110.0,112100.0,0.05394001]
[1760200223277,6.06398165,112110.0,112100.0,0.05394001]
[1760200223912,1.06398165,112110.0,112100.0,0.05394001]
[1760200224124,6.06398165,112110.0,112100.0,0.05394001]
[1760200224335,1.16814099,112110.0,112100.0,0.00200001]
[1760200224543,6.16814099,112110.0,112100.0,0.01718001]
[1760200224756,6.07942165,112110.0,112100.0,0.01718001]
[1760200225381,1.07942165,112110.0,112100.0,0.02907001]
[1760200225587,6.07942165,112110.0,112100.0,0.02907001]
[1760200226004,1.07942165,112110.0,112100.0,0.02907001]
[1760200226219,6.07942165,112110.0,112100.0,0.02907001]
[1760200226542,6.06398165,112110.0,112100.0,0.05394001]
[1760200226747,6.07942165,112110.0,112100.0,0.05394001]
[1760200227370,6.06398165,112110.0,112100.0,0.05394001]
[1760200227646,6.07942165,112110.0,112100.0,0.05394001]
[1760200227773,6.07942165,112110.0,112100.0,0.02907001]
[1760200228623,6.06398165,112110.0,112100.0,0.05394001]
[1760200229189,6.03802199,112110.0,112100.0,0.05394001]
[1760200231597,1.03802199,112110.0,112100.0,0.05394001]
[1760200231802,6.05346199,112110.0,112100.0,0.05394001]
[1760200232005,6.12674133,112110.0,112100.0,0.05394001]
[1760200232204,6.05346199,112110.0,112100.0,0.02907001]
[1760200232401,1.05346199,112110.0,112100.0,0.02907001]
[1760200232598,1.07210199,112110.0,112100.0,0.00200001]
[1760200232803,6.07210199,112110.0,112100.0,0.00200001]
[1760200233041,6.05346199,112110.0,112100.0,0.00200001]
[1760200234004,6.7350271,112110.0,112100.0,0.00200001]
[1760200234461,6.70820905,112110.0,112100.0,0.00200001]
[1760200234726,6.21693289,112110.0,112100.0,0.00200001]
[1760200234845,6.2159329,112110.0,112100.0,0.00100002]
[1760200235045,0.59133774,112110.0,112100.0,0.01518002]
[1760200235250,6.0671739,112110.0,112100.0,0.05194002]
[1760200235438,6.0826139,112110.0,112100.0,0.05194002]
[1760200235640,6.0671739,112110.0,112100.0,0.05194002]
[1760200235932,1.0671739,112110.0,112100.0,0.05194]
[1760200236205,6.0671739,112110.0,112100.0,0.05194]
[1760200237582,6.0826139,112110.0,112100.0,0.02707]
[1760200239331,6.0671739,112110.0,112100.0,0.05194]
[1760200240178,1.0671739,112110.0,112100.0,0.05194]
[1760200240368,6.0671739,112110.0,112100.0,0.05194]
[1760200240588,1.0671739,112110.0,112100.0,0.05194]
[1760200240824,6.0671739,112110.0,112100.0,0.05194]
[1760200241348,1.0671739,112110.0,112100.0,0.05194]
[1760200241634,6.0671739,112110.0,112100.0,0.05194]
[1760200242389,5.54574584,112110.0,112100.0,0.05194]
[1760200242591,6.037022,112110.0,112100.0,0.05194]
[1760200243831,5.54574584,112110.0,112100.0,0.05194]
[1760200244057,6.037022,112110.0,112100.0,0.05194]
[1760200244847,6.037022,112110.0,112100.0,0.05294]
[1760200247861,6.00129969,112110.0,112100.0,0.05294]
[1760200248063,6.02814099,112110.0,112100.0,0.05294]
[1760200250318,5.53686483,112110.0,112100.0,0.05294]
[1760200250531,6.02814099,112110.0,112100.0,0.05294]
[1760200251030,1.02814099,112110.0,112100.0,0.05294]
[1760200251438,1.02814099,112110.0,112100.0,0.07078121]
[1760200251666,1.64145939,112110.0,112100.0,0.07078121]
[1760200252074,1.64145939,112110.0,112100.0,0.24919334]
[1760200252219,1.64145939,112110.0,112100.0,0.05294]
[1760200252431,0.9107659,112110.0,112100.0,0.24919334]
[1760200252655,1.64145939,112110.0,112100.0,0.23135213]
[1760200253698,1.08916211,112110.0,112100.0,0.23135213]
[1760200253911,1.64145939,112110.0,112100.0,0.23135213]
[1760200254542,0.9107659,112110.0,112100.0,0.23135213]
[1760200254944,0.8839246,112110.0,112100.0,0.23135213]
[1760200255589,0.8839246,112110.0,112100.0,0.23035213]
[1760200255849,0.55229728,112110.0,112100.0,0.23135213]
[1760200256099,0.55229728,112110.0,112100.0,0.23235213]
[1760200256323,0.89229728,112110.0,112100.0,0.23235213]
[1760200259542,0.34,112110.0,112100.0,0.23235213]
[1760200259758,0.89229728,112110.0,112100.0,0.23235213]
[1760200260087,6.62299077,112110.0,112100.0,0.05394]
[1760200260333,6.67486755,112110.0,112100.0,0.05394]
[1760200260494,6.64982979,112110.0,112100.0,0.05394]
[1760200265238,6.64982979,112110.0,112100.0,0.08074]
[1760200267316,6.65021097,112110.0,112100.0,0.08074]
[1760200269768,7.20269884,112110.0,112100.0,0.08074]
[1760200269946,7.21201884,112110.0,112100.0,0.08074]
[1760200270544,7.20269884,112110.0,112100.0,0.08074]
[1760200270748,7.20269884,112110.0,112100.0,0.07974]
[1760200271212,6.65021097,112110.0,112100.0,0.07974]
[1760200275195,1.65021097,112110.0,112100.0,0.07974]
[1760200275438,0.54523523,112110.0,112100.0,0.07974]
[1760200275664,1.65021097,112110.0,112100.0,0.07974]
[1760200277999,0.54523523,112110.0,112100.0,0.07974]
[1760200278225,1.65021097,112110.0,112100.0,0.07974]
[1760200279831,0.54523523,112110.0,112100.0,0.07974]
[1760200291195,0.61759814,112110.0,112100.0,0.07974]
[1760200291474,5.54523523,112110.0,112100.0,0.07974]
[1760200292665,5.20523523,112110.0,112100.0,0.07974]
[1760200298283,5.54523523,112110.0,112100.0,0.07974]
[1760200299574,5.61922713,112110.0,112100.0,0.0278]
[1760200299793,5.75979584,112110.0,112100.0,0.0278]
[1760200300012,5.70794647,112110.0,112100.0,1e-08]
[1760200300229,5.75979584,112110.0,112100.0,1e-08]
[1760200301297,0.75979584,112110.0,112100.0,1e-08]
[1760200301505,5.51841213,112100.0,112090.0,0.0004]
[1760200301727,5.60713147,112100.0,112090.0,0.0004]
[1760200301906,0.64819644,112100.0,112090.0,0.0004]
[1760200302143,0.66683644,112100.0,112090.0,0.00098012]
[1760200302355,5.5781171,112100.0,112090.0,0.00098012]
[1760200302782,5.60496529,112100.0,112090.0,0.00098012]
[1760200303362,0.60496529,112100.0,112090.0,0.00098012]
[1760200303565,5.60496529,112100.0,112090.0,0.00098012]
[1760200303967,0.60496529,112100.0,112090.0,0.00098012]
[1760200304184,0.63511719,112100.0,112090.0,0.00098012]
[1760200304596,5.63511719,112100.0,112090.0,0.00098012]
[1760200305448,0.63511719,112100.0,112090.0,0.00098012]
[1760200305649,5.63511719,112100.0,112090.0,0.00098012]
[1760200306207,0.63511719,112100.0,112090.0,0.00098012]
[1760200306425,5.63511719,112100.0,112090.0,0.00098012]
[1760200307940,0.63511719,112100.0,112090.0,0.00098012]
[1760200308134,5.63511719,112100.0,112090.0,0.00098012]
[1760200311932,0.63511719,112100.0,112090.0,0.00098012]
[1760200312067,5.63511719,112100.0,112090.0,0.00098012]
[1760200312471,0.63511719,112100.0,112090.0,0.00098012]
[1760200312676,5.63511719,112100.0,112090.0,0.00098012]
[1760200312877,0.63511719,112100.0,112090.0,0.00098012]
[1760200313243,5.63511719,112100.0,112090.0,0.00098012]
[1760200313564,0.63511719,112100.0,112090.0,0.00098012]
[1760200313773,5.63511719,112100.0,112090.0,0.00098012]
[1760200314701,0.63511719,112100.0,112090.0,0.00098012]
[1760200314905,5.63511719,112100.0,112090.0,0.00098012]
[1760200316172,0.63511719,112100.0,112090.0,0.00098012]
[1760200316371,5.63511719,112100.0,112090.0,0.00098012]
[1760200321186,0.63511719,112100.0,112090.0,0.00098012]
[1760200321396,5.63511719,112100.0,112090.0,0.00098012]
[1760200322256,0.63511719,112100.0,112090.0,0.00098012]
[1760200322462,5.63511719,112100.0,112090.0,0.00098012]
[1760200322891,0.63511719,112100.0,112090.0,0.00098012]
[1760200323108,5.63511719,112100.0,112090.0,0.00098012]
[1760200325293,5.66188691,112100.0,112090.0,0.00098012]
[1760200325769,5.63511719,112100.0,112090.0,0.00098012]
[1760200326104,0.63511719,112100.0,112090.0,0.00098012]
[1760200326311,5.63511719,112100.0,112090.0,0.00098012]
[1760200326927,0.63511719,112100.0,112090.0,0.00098012]
[1760200327130,5.63511719,112100.0,112090.0,0.00098012]
[1760200327939,0.63511719,112100.0,112090.0,0.00098012]
[1760200328138,5.63511719,112100.0,112090.0,0.00098012]
[1760200329124,0.63511719,112100.0,112090.0,0.00098012]
[1760200329325,5.65180251,112100.0,112090.0,0.00098012]
[1760200329993,0.65180251,112100.0,112090.0,0.00098012]
[1760200330208,5.65180251,112100.0,112090.0,0.00098012]
[1760200331243,0.65180251,112100.0,112090.0,0.00098012]
[1760200331452,5.65180251,112100.0,112090.0,0.00098012]
[1760200333539,0.65180251,112100.0,112090.0,0.00098012]
[1760200333743,5.65180251,112100.0,112090.0,0.00098012]
[1760200334148,0.65180251,112100.0,112090.0,0.00098012]
[1760200334360,5.65180251,112100.0,112090.0,0.00098012]
[1760200335231,0.65180251,112100.0,112090.0,0.00098012]
[1760200335369,5.65180251,112100.0,112090.0,0.00098012]
[1760200336707,0.65180251,112100.0,112090.0,0.00098012]
[1760200336963,5.65180251,112100.0,112090.0,0.00098012]
[1760200340502,0.65180251,112100.0,112090.0,0.00098012]
[1760200340913,5.65180251,112100.0,112090.0,0.00098012]
[1760200341837,0.65180251,112100.0,112090.0,0.00098012]
[1760200342041,5.61007222,112100.0,112090.0,0.00098012]
[1760200343999,5.63499384,112100.0,112090.0,0.00098012]
[1760200344198,0.63499384,112100.0,112090.0,0.00098012]
[1760200344460,5.63499384,112100.0,112090.0,0.00098012]
[1760200346041,0.63499384,112100.0,112090.0,0.00098012]
[1760200346212,5.63499384,112100.0,112090.0,0.00098012]
[1760200346851,0.63499384,112100.0,112090.0,0.00098012]
[1760200347077,5.63499384,112100.0,112090.0,0.00098012]
[1760200347899,0.63499384,112100.0,112090.0,0.00098012]
[1760200348111,5.63499384,112100.0,112090.0,0.00098012]
[1760200349373,0.63499384,112100.0,112090.0,0.00098012]
[1760200349570,5.63499384,112100.0,112090.0,0.00098012]
[1760200350021,5.61007222,112100.0,112090.0,0.00098012]
[1760200350633,0.61007222,112100.0,112090.0,0.00098012]
[1760200350846,5.61007222,112100.0,112090.0,0.00098012]
[1760200351779,0.61007222,112100.0,112090.0,0.00098012]
[1760200351991,5.61007222,112100.0,112090.0,0.00098012]
[1760200353489,5.63499384,112100.0,112090.0,0.00098012]
[1760200353867,0.63499384,112100.0,112090.0,0.00098012]
[1760200354095,5.66176356,112100.0,112090.0,0.00098012]
[1760200354476,0.66176356,112100.0,112090.0,0.00098012]
[1760200354676,5.66176356,112100.0,112090.0,0.00098012]
[1760200355080,5.67845976,112100.0,112090.0,0.00098012]
[1760200355307,5.66176356,112100.0,112090.0,0.00098012]
[1760200356313,0.66176356,112100.0,112090.0,0.00098012]
[1760200356484,5.66176356,112100.0,112090.0,0.00098012]
[1760200356944,0.66176356,112100.0,112090.0,0.00098012]
[1760200357163,5.66176356,112100.0,112090.0,0.00098012]
[1760200359541,5.63499384,112100.0,112090.0,0.00098012]
[1760200359939,0.63499384,112100.0,112090.0,0.00098012]
[1760200360141,5.63499384,112100.0,112090.0,0.00098012]
[1760200362228,0.63499384,112100.0,112090.0,0.00098012]
[1760200362429,5.63499384,112100.0,112090.0,0.00098012]
[1760200362570,0.63499384,112100.0,112090.0,0.00098012]
[1760200362771,5.63499384,112100.0,112090.0,0.00098012]
[1760200363406,0.63499384,112100.0,112090.0,0.00098012]
[1760200363839,5.63499384,112100.0,112090.0,0.00098012]
[1760200364250,0.63499384,112100.0,112090.0,0.00098012]
[1760200364448,5.66176356,112100.0,112090.0,1e-08]
[1760200364672,0.66366679,112090.0,112080.0,0.0104]
[1760200364881,0.54859586,112080.0,112070.0,0.0004]
[1760200365082,5.59120558,112080.0,112070.0,0.0004]
[1760200365289,5.54861179,112070.0,112060.0,0.0004]
[1760200365493,5.60962313,112070.0,112060.0,0.0004]
[1760200365697,5.64410313,112070.0,112060.0,0.0004]
[1760200366104,5.647684,112070.0,112060.0,0.0004]
[1760200366445,5.647684,112070.0,112060.0,0.00090401]
[1760200367157,0.647684,112070.0,112060.0,0.00090401]
[1760200367368,5.647684,112070.0,112060.0,0.00090401]
[1760200367938,5.51847581,112060.0,112050.0,0.0004]
[1760200368159,5.57354933,112060.0,112050.0,5.053e-05]
[1760200368333,0.54336283,112050.0,112040.0,0.0004]
[1760200368535,5.55267283,112050.0,112040.0,0.00049013]
[1760200368743,5.58715283,112050.0,112040.0,0.00049013]
[1760200369397,0.58715283,112050.0,112040.0,0.00049013]
[1760200369566,5.58715283,112050.0,112040.0,0.00049013]
[1760200369771,5.61401376,112050.0,112040.0,0.00049013]
[1760200370293,0.64416566,112050.0,112040.0,0.00049013]
[1760200370514,5.64416566,112050.0,112040.0,0.00049013]
[1760200371073,0.64416566,112050.0,112040.0,0.00049013]
[1760200371254,5.64416566,112050.0,112040.0,0.00049013]
[1760200371648,0.64416566,112050.0,112040.0,0.00049013]
[1760200372231,5.64416566,112050.0,112040.0,0.00049013]
[1760200372431,5.61929457,112050.0,112040.0,0.00049013]
[1760200372763,0.61929457,112050.0,112040.0,0.00049013]
[1760200372975,5.61929457,112050.0,112040.0,0.00049013]
[1760200374881,5.64421197,112050.0,112040.0,0.00049013]
[1760200375656,0.64421197,112050.0,112040.0,0.00049013]
[1760200375863,5.64421197,112050.0,112040.0,0.00339215]
[1760200376309,0.64421197,112050.0,112040.0,0.00339215]
[1760200376514,5.64421197,112050.0,112040.0,0.00339215]
[1760200376953,0.64421197,112050.0,112040.0,0.00339215]
[1760200377161,5.64421197,112050.0,112040.0,0.00339215]
[1760200377721,0.64421197,112050.0,112040.0,0.00339215]
[1760200377930,5.64421197,112050.0,112040.0,0.00339215]
[1760200378121,0.64421197,112050.0,112040.0,0.00339215]
[1760200378327,5.64421197,112050.0,112040.0,0.00339215]
[1760200379536,5.61929457,112050.0,112040.0,0.00339215]
[1760200380276,0.60065457,112050.0,112040.0,0.01910215]
[1760200380474,0.55466267,112050.0,112040.0,0.05565215]
[1760200380812,5.57550457,112050.0,112040.0,0.05565215]
[1760200381314,0.57550457,112050.0,112040.0,0.05565215]
[1760200381513,5.60065457,112050.0,112040.0,0.05565215]
[1760200381934,0.60065457,112050.0,112040.0,0.05565215]
[1760200382189,5.60065457,112050.0,112040.0,0.05565215]
[1760200382769,5.57550457,112050.0,112040.0,0.05565215]
[1760200383061,5.60065457,112050.0,112040.0,0.05565215]
[1760200383290,0.61929457,112050.0,112040.0,0.00339215]
[1760200383432,5.61929457,112050.0,112040.0,0.00339215]
[1760200383632,0.61929457,112050.0,112040.0,0.00339215]
[1760200383834,5.61929457,112050.0,112040.0,0.00339215]
[1760200384040,5.60065457,112050.0,112040.0,0.01910215]
[1760200384273,5.60065457,112050.0,112040.0,0.03112215]
[1760200384463,0.60065457,112050.0,112040.0,0.03112215]
[1760200384630,5.60065457,112050.0,112040.0,0.03112215]
[1760200385246,5.60065457,112050.0,112040.0,0.05565215]
[1760200385247,5.58481457,112050.0,112040.0,0.05565215]
[1760200385937,0.58481457,112050.0,112040.0,0.05565215]
[1760200386140,0.60065457,112050.0,112040.0,0.03112215]
[1760200386429,5.60065457,112050.0,112040.0,0.01541215]
[1760200386653,5.67098169,112050.0,112040.0,0.00339215]
[1760200386793,5.64421197,112050.0,112040.0,0.00339215]
[1760200388727,5.62557197,112050.0,112040.0,0.00339215]
[1760200388934,5.64421197,112050.0,112040.0,0.00339215]
[1760200389305,0.64421197,112050.0,112040.0,0.00339215]
[1760200389506,5.64421197,112050.0,112040.0,0.00339215]
[1760200390579,5.67098169,112050.0,112040.0,0.00339215]
[1760200390779,5.64421197,112050.0,112040.0,0.00339215]
[1760200391156,0.64421197,112050.0,112040.0,0.00339215]
[1760200391359,5.51853954,112020.0,112010.0,0.03655]
[1760200391605,5.51853954,112020.0,112010.0,0.05216066]
[1760200392020,0.51853954,112020.0,112010.0,0.05216066]
[1760200392247,5.54540177,112020.0,112010.0,0.05216066]
[1760200392656,5.55419847,112020.0,112010.0,0.05216066]
[1760200393676,5.56973847,112020.0,112010.0,0.02763066]
[1760200393880,5.61853037,112020.0,112010.0,0.00015066]
[1760200394025,5.64344777,112020.0,112010.0,0.00015066]
[1760200395131,5.62480777,112020.0,112010.0,0.00015066]
[1760200395357,5.64344777,112020.0,112010.0,0.00015066]
[1760200395952,5.62480777,112020.0,112010.0,0.01561066]
[1760200396115,5.64344777,112020.0,112010.0,0.00015066]
[1760200396316,0.64344777,112020.0,112010.0,0.00015066]
[1760200396517,5.64344777,112020.0,112010.0,0.00015066]
[1760200396980,5.64344777,112020.0,112010.0,0.00189272]
[1760200397153,5.62480777,112020.0,112010.0,0.01735272]
[1760200397776,5.62480777,112020.0,112010.0,0.00189272]
[1760200397976,5.64344777,112020.0,112010.0,0.00189272]
[1760200398789,0.64344777,112020.0,112010.0,0.00189272]
[1760200399057,5.64344777,112020.0,112010.0,0.00189272]
[1760200399426,5.64344777,112020.0,112010.0,0.02945272]
[1760200399427,0.59989037,112020.0,112010.0,0.02945272]
[1760200399568,5.59989037,112020.0,112010.0,0.02945272]
[1760200399769,0.59989037,112020.0,112010.0,0.02945272]
[1760200400011,5.59989037,112020.0,112010.0,0.02945272]
[1760200400214,5.59989037,112020.0,112010.0,0.00189272]
[1760200400420,5.59989037,112020.0,112010.0,0.02945272]
[1760200401046,0.59989037,112020.0,112010.0,0.02945272]
[1760200401221,5.59989037,112020.0,112010.0,0.02945272]
[1760200401812,0.59989037,112020.0,112010.0,0.02945272]
[1760200402013,5.59989037,112020.0,112010.0,0.02945272]
[1760200402829,6.09989037,112020.0,112010.0,0.01399272]
[1760200403064,6.11853037,112020.0,112010.0,0.00189272]
[1760200403438,1.11853037,112020.0,112010.0,0.00189272]
[1760200403842,6.11853037,112020.0,112010.0,0.00189272]
[1760200404935,5.89725712,112020.0,112010.0,0.00189272]
[1760200405127,6.07579666,112020.0,112010.0,0.00189272]
[1760200405537,0.92229866,112020.0,112010.0,0.00189272]
[1760200405756,0.77853037,112020.0,112010.0,0.00189272]
[1760200406112,5.80344777,112020.0,112010.0,0.00189272]
[1760200407079,0.80344777,112020.0,112010.0,0.00189272]
[1760200407437,5.80344777,112020.0,112010.0,0.00189272]
[1760200407682,6.14344777,112020.0,112010.0,0.00189272]
[1760200408086,1.14344777,112020.0,112010.0,0.00189272]
[1760200408297,6.14344777,112020.0,112010.0,0.00189272]
[1760200408818,1.14344777,112020.0,112010.0,0.00189272]
[1760200409021,6.14344777,112020.0,112010.0,0.00189272]
[1760200409822,1.14344777,112020.0,112010.0,0.00189272]
[1760200410028,6.14344777,112020.0,112010.0,0.00189272]
[1760200412086,1.14344777,112020.0,112010.0,0.00189272]
[1760200412249,6.14344777,112020.0,112010.0,0.00189272]
[1760200412500,1.14344777,112020.0,112010.0,0.00189272]
[1760200412696,6.14344777,112020.0,112010.0,0.00189272]
[1760200413364,5.57362478,112010.0,112000.0,5.541299]